Workbook

Sheet 薪資輸入
B1: 薪資計算器 | K1: 結算日期： | L1: 41372 | N1: 公司名稱： | P1: ADVENTURE WORKS
B3: 識別碼 | C3: 員工名稱 | D3: 一般工作時數 | E3: 假期時數 | F3: 病假 時數 | G3: 加班時數 | H3: 加班工資率 | I3: 總 支付額 | J3: 稅金和扣繳額 | K3: 其他 扣繳額 | L3: 淨支付額 | N3: 時薪 | O3: 課稅 狀態 | P3: 聯邦 預扣稅 | Q3: 州 稅 | R3: 聯邦 所得稅 | S3: 社會安全 稅 | T3: 醫療保健 稅 | U3: 總預扣稅金 | V3: 保險扣繳額 | W3: 其他一般扣繳額 | X3: 一般 扣繳總額
B4: 1001 | C4: Tony Smith | D4: 50 | E4: 5 | F4: 1 | I4: =SUM(員工[[#This Row],[一般工作時數]:[病假 時數]])*員工[[#This Row],[時薪]]+員工[[#This Row],[加班時數]]*員工[[#This Row],[加班工資率]] -> 16800 | J4: =員工[[#This Row],[總 支付額]]*員工[[#This Row],[總預扣稅金]] + 員工[[#This Row],[一般 扣繳總額]] -> 8192.4 | L4: =員工[[#This Row],[總 支付額]]-員工[[#This Row],[稅金和扣繳額]]-員工[[#This Row],[其他 扣繳額]] -> 8607.6 | N4: 300 | O4: 1 | P4: 4 | Q4: 0.023 | R4: 0.28 | S4: 0.063 | T4: 0.0145 | U4: =SUM(員工[[#This Row],[州 稅]:[醫療保健 稅]]) -> 0.3805 | V4: 600 | W4: 1200 | X4: =SUM(員工[[#This Row],[保險扣繳額]:[其他一般扣繳額]]) -> 1800
B5: 1002 | C5: David Jones | D5: 40 | I5: =SUM(員工[[#This Row],[一般工作時數]:[病假 時數]])*員工[[#This Row],[時薪]]+員工[[#This Row],[加班時數]]*員工[[#This Row],[加班工資率]] -> 9600 | J5: =員工[[#This Row],[總 支付額]]*員工[[#This Row],[總預扣稅金]] + 員工[[#This Row],[一般 扣繳總額]] -> 3952.8 | L5: =員工[[#This Row],[總 支付額]]-員工[[#This Row],[稅金和扣繳額]]-員工[[#This Row],[其他 扣繳額]] -> 5647.2 | N5: 240 | O5: 1 | P5: 1 | Q5: 0.023 | R5: 0.28 | S5: 0.063 | T5: 0.0145 | U5: =SUM(員工[[#This Row],[州 稅]:[醫療保健 稅]]) -> 0.3805 | V5: 0 | W5: 300 | X5: =SUM(員工[[#This Row],[保險扣繳額]:[其他一般扣繳額]]) -> 300
B6: 1003 | C6: Denise Smith | D6: 35 | E6: 3 | I6: =SUM(員工[[#This Row],[一般工作時數]:[病假 時數]])*員工[[#This Row],[時薪]]+員工[[#This Row],[加班時數]]*員工[[#This Row],[加班工資率]] -> 15960 | J6: =員工[[#This Row],[總 支付額]]*員工[[#This Row],[總預扣稅金]] + 員工[[#This Row],[一般 扣繳總額]] -> 7212.78 | L6: =員工[[#This Row],[總 支付額]]-員工[[#This Row],[稅金和扣繳額]]-員工[[#This Row],[其他 扣繳額]] -> 8747.22 | N6: 420 | O6: 1 | P6: 3 | Q6: 0.023 | R6: 0.28 | S6: 0.063 | T6: 0.0145 | U6: =SUM(員工[[#This Row],[州 稅]:[醫療保健 稅]]) -> 0.3805 | V6: 540 | W6: 600 | X6: =SUM(員工[[#This Row],[保險扣繳額]:[其他一般扣繳額]]) -> 1140
B7: 1008 | C7: Sebastien Motte | D7: 50 | E7: 5 | F7: 1 | I7: =SUM(員工[[#This Row],[一般工作時數]:[病假 時數]])*員工[[#This Row],[時薪]]+員工[[#This Row],[加班時數]]*員工[[#This Row],[加班工資率]] -> 33600 | J7: =員工[[#This Row],[總 支付額]]*員工[[#This Row],[總預扣稅金]] + 員工[[#This Row],[一般 扣繳總額]] -> 13234.8 | L7: =員工[[#This Row],[總 支付額]]-員工[[#This Row],[稅金和扣繳額]]-員工[[#This Row],[其他 扣繳額]] -> 20365.2 | N7: 600 | O7: 1 | P7: 0 | Q7: 0.023 | R7: 0.28 | S7: 0.063 | T7: 0.0145 | U7: =SUM(員工[[#This Row],[州 稅]:[醫療保健 稅]]) -> 0.3805 | V7: 450 | X7: =SUM(員工[[#This Row],[保險扣繳額]:[其他一般扣繳額]]) -> 450
B8: 1011 | C8: Isabelle Scemla | D8: 40 | G8: 2 | H8: 450 | I8: =SUM(員工[[#This Row],[一般工作時數]:[病假 時數]])*員工[[#This Row],[時薪]]+員工[[#This Row],[加班時數]]*員工[[#This Row],[加班工資率]] -> 12900 | J8: =員工[[#This Row],[總 支付額]]*員工[[#This Row],[總預扣稅金]] + 員工[[#This Row],[一般 扣繳總額]] -> 6708.45 | L8: =員工[[#This Row],[總 支付額]]-員工[[#This Row],[稅金和扣繳額]]-員工[[#This Row],[其他 扣繳額]] -> 6191.55 | N8: 300 | O8: 1 | P8: 0 | Q8: 0.023 | R8: 0.28 | S8: 0.063 | T8: 0.0145 | U8: =SUM(員工[[#This Row],[州 稅]:[醫療保健 稅]]) -> 0.3805 | V8: 600 | W8: 1200 | X8: =SUM(員工[[#This Row],[保險扣繳額]:[其他一般扣繳額]]) -> 1800
B9: 1012 | C9: David Bristol | D9: 40 | E9: 5 | F9: 1 | I9: =SUM(員工[[#This Row],[一般工作時數]:[病假 時數]])*員工[[#This Row],[時薪]]+員工[[#This Row],[加班時數]]*員工[[#This Row],[加班工資率]] -> 16560 | J9: =員工[[#This Row],[總 支付額]]*員工[[#This Row],[總預扣稅金]] + 員工[[#This Row],[一般 扣繳總額]] -> 8101.08 | L9: =員工[[#This Row],[總 支付額]]-員工[[#This Row],[稅金和扣繳額]]-員工[[#This Row],[其他 扣繳額]] -> 8458.92 | N9: 360 | O9: 1 | P9: 4 | Q9: 0.023 | R9: 0.28 | S9: 0.063 | T9: 0.0145 | U9: =SUM(員工[[#This Row],[州 稅]:[醫療保健 稅]]) -> 0.3805 | V9: 600 | W9: 1200 | X9: =SUM(員工[[#This Row],[保險扣繳額]:[其他一般扣繳額]]) -> 1800
B10: 1025 | C10: Anne Weiler | D10: 36 | F10: 2 | G10: 1 | H10: 540 | I10: =SUM(員工[[#This Row],[一般工作時數]:[病假 時數]])*員工[[#This Row],[時薪]]+員工[[#This Row],[加班時數]]*員工[[#This Row],[加班工資率]] -> 14220 | J10: =員工[[#This Row],[總 支付額]]*員工[[#This Row],[總預扣稅金]] + 員工[[#This Row],[一般 扣繳總額]] -> 6760.71 | K10: 750 | L10: =員工[[#This Row],[總 支付額]]-員工[[#This Row],[稅金和扣繳額]]-員工[[#This Row],[其他 扣繳額]] -> 6709.29 | N10: 360 | O10: 1 | P10: 2 | Q10: 0.023 | R10: 0.28 | S10: 0.063 | T10: 0.0145 | U10: =SUM(員工[[#This Row],[州 稅]:[醫療保健 稅]]) -> 0.3805 | V10: 750 | W10: 600 | X10: =SUM(員工[[#This Row],[保險扣繳額]:[其他一般扣繳額]]) -> 1350
B11: 1032 | C11: Luka Abrus | D11: 40 | E11: 5 | F11: 1 | I11: =SUM(員工[[#This Row],[一般工作時數]:[病假 時數]])*員工[[#This Row],[時薪]]+員工[[#This Row],[加班時數]]*員工[[#This Row],[加班工資率]] -> 13800 | J11: =員工[[#This Row],[總 支付額]]*員工[[#This Row],[總預扣稅金]] + 員工[[#This Row],[一般 扣繳總額]] -> 5250.9 | K11: 1500 | L11: =員工[[#This Row],[總 支付額]]-員工[[#This Row],[稅金和扣繳額]]-員工[[#This Row],[其他 扣繳額]] -> 7049.1 | N11: 300 | O11: 1 | P11: 3 | Q11: 0.023 | R11: 0.28 | S11: 0.063 | T11: 0.0145 | U11: =SUM(員工[[#This Row],[州 稅]:[醫療保健 稅]]) -> 0.3805 | X11: =SUM(員工[[#This Row],[保險扣繳額]:[其他一般扣繳額]]) -> 0
B12: 1049 | C12: David Ludwig | D12: 40 | E12: 1 | I12: =SUM(員工[[#This Row],[一般工作時數]:[病假 時數]])*員工[[#This Row],[時薪]]+員工[[#This Row],[加班時數]]*員工[[#This Row],[加班工資率]] -> 18450 | J12: =員工[[#This Row],[總 支付額]]*員工[[#This Row],[總預扣稅金]] + 員工[[#This Row],[一般 扣繳總額]] -> 7770.225 | K12: 690 | L12: =員工[[#This Row],[總 支付額]]-員工[[#This Row],[稅金和扣繳額]]-員工[[#This Row],[其他 扣繳額]] -> 9989.775 | N12: 450 | O12: 1 | P12: 2 | Q12: 0.023 | R12: 0.28 | S12: 0.063 | T12: 0.0145 | U12: =SUM(員工[[#This Row],[州 稅]:[醫療保健 稅]]) -> 0.3805 | V12: 750 | X12: =SUM(員工[[#This Row],[保險扣繳額]:[其他一般扣繳額]]) -> 750
B13: 總計 | C13: =SUBTOTAL(103,員工[員工名稱]) -> 9 | D13: =SUBTOTAL(109,員工[一般工作時數]) -> 371 | E13: =SUBTOTAL(109,員工[假期時數]) -> 24 | F13: =SUBTOTAL(109,員工[病假 時數]) -> 6 | G13: =SUBTOTAL(109,員工[加班時數]) -> 3 | I13: =SUBTOTAL(109,員工[總 支付額]) -> 151890 | J13: =SUBTOTAL(109,員工[稅金和扣繳額]) -> 67184.145 | K13: =SUBTOTAL(109,員工[其他 扣繳額]) -> 2940 | L13: =SUBTOTAL(109,員工[淨支付額]) -> 81765.855 | V13: =SUBTOTAL(109,員工[保險扣繳額]) -> 4290 | W13: =SUBTOTAL(109,員工[其他一般扣繳額]) -> 5100 | X13: =SUBTOTAL(109,員工[一般 扣繳總額]) -> 9390

Sheet stubs_template (hidden)
C2: =CompanyName -> ADVENTURE WORKS
C3: 期間 | D3: =PeriodEnding -> 41372 | G3: 姓名 | H3: =IFERROR(INDEX(員工[員工名稱],Stub),"") -> Tony Smith | K3: 員工識別碼 | L3: =IFERROR(INDEX(員工[識別碼],Stub),"") -> 1001
C4: 課稅狀態 | E4: =IFERROR(INDEX(員工[課稅 狀態],Stub),"") -> 1 | G4: 聯邦預扣稅 (根據 W-4) | I4: =IFERROR(INDEX(員工[聯邦 預扣稅],Stub),"") -> 4 | K4: 工作時數 | M4: =IFERROR(INDEX(員工[一般工作時數],Stub),"") -> 50
C5: 時薪 | E5: =IFERROR(INDEX(員工[時薪],Stub),"") -> 300 | G5: 加班工資率 | I5: =IFERROR(INDEX(員工[加班工資率],Stub),"") -> 0 | K5: 病假時數 | M5: =IFERROR(INDEX(員工[病假 時數],Stub),"") -> 1
C6: 社會安全稅 | E6: =IFERROR(INDEX(員工[社會安全 稅],Stub) * INDEX(員工[總 支付額],Stub),"") -> 1058.4 | G6: 聯邦所得稅 | I6: =IFERROR(INDEX(員工[聯邦 所得稅],Stub) * INDEX(員工[總 支付額],Stub),"") -> 4704 | K6: 假期時數 | M6: =IFERROR(INDEX(員工[假期時數],Stub),"") -> 5
C7: 醫療保健稅 | E7: =IFERROR(INDEX(員工[醫療保健 稅],Stub) * INDEX(員工[總 支付額],Stub),"") -> 243.6 | G7: 州稅 | I7: =IFERROR(INDEX(員工[州 稅],Stub) * INDEX(員工[總 支付額],Stub),"") -> 386.4 | K7: 加班時數 | M7: =IFERROR(INDEX(員工[加班時數],Stub),"") -> 0
C8: 保險扣繳額 | E8: =IFERROR(INDEX(員工[保險扣繳額],Stub),"") -> 600 | G8: 其他一般扣繳額 | I8: =IFERROR(INDEX(員工[其他一般扣繳額],Stub),"") -> 1200 | K8: 總支付額 | M8: =IFERROR(INDEX(員工[總 支付額],Stub),"") -> 16800
C9: 稅金和 | E9: =IFERROR(INDEX(員工[稅金和扣繳額],Stub),"") -> 8192.4 | G9: 其他扣繳額 | I9: =IFERROR(INDEX(員工[其他 扣繳額],Stub),"") -> 0 | K9: 稅金和扣繳總額 | M9: =IFERROR(INDEX(員工[稅金和扣繳額],Stub) + INDEX(員工[其他 扣繳額],Stub),"") -> 8192.4
C10: 一般扣繳總額
K11: 淨支付額 | M11: =IFERROR(INDEX(員工[淨支付額],Stub),"") -> 8607.6
C14: =CompanyName -> ADVENTURE WORKS
C15: 期間 | D15: =PeriodEnding -> 41372 | G15: 姓名 | H15: =IFERROR(INDEX(員工[員工名稱],Stub),"") -> David Jones | K15: 員工識別碼 | L15: =IFERROR(INDEX(員工[識別碼],Stub),"") -> 1002
C16: 課稅狀態 | E16: =IFERROR(INDEX(員工[課稅 狀態],Stub),"") -> 1 | G16: 聯邦預扣稅 (根據 W-4) | I16: =IFERROR(INDEX(員工[聯邦 預扣稅],Stub),"") -> 1 | K16: 工作時數 | M16: =IFERROR(INDEX(員工[一般工作時數],Stub),"") -> 40
C17: 時薪 | E17: =IFERROR(INDEX(員工[時薪],Stub),"") -> 240 | G17: 加班工資率 | I17: =IFERROR(INDEX(員工[加班工資率],Stub),"") -> 0 | K17: 病假時數 | M17: =IFERROR(INDEX(員工[病假 時數],Stub),"") -> 0
C18: 社會安全稅 | E18: =IFERROR(INDEX(員工[社會安全 稅],Stub) * INDEX(員工[總 支付額],Stub),"") -> 604.8 | G18: 聯邦所得稅 | I18: =IFERROR(INDEX(員工[聯邦 所得稅],Stub) * INDEX(員工[總 支付額],Stub),"") -> 2688 | K18: 假期時數 | M18: =IFERROR(INDEX(員工[假期時數],Stub),"") -> 0
C19: 醫療保健稅 | E19: =IFERROR(INDEX(員工[醫療保健 稅],Stub) * INDEX(員工[總 支付額],Stub),"") -> 139.2 | G19: 州稅 | I19: =IFERROR(INDEX(員工[州 稅],Stub) * INDEX(員工[總 支付額],Stub),"") -> 220.8 | K19: 加班時數 | M19: =IFERROR(INDEX(員工[加班時數],Stub),"") -> 0
C20: 保險扣繳額 | E20: =IFERROR(INDEX(員工[保險扣繳額],Stub),"") -> 0 | G20: 其他一般扣繳額 | I20: =IFERROR(INDEX(員工[其他一般扣繳額],Stub),"") -> 300 | K20: 總支付額 | M20: =IFERROR(INDEX(員工[總 支付額],Stub),"") -> 9600
C21: 稅金和 | E21: =IFERROR(INDEX(員工[稅金和扣繳額],Stub),"") -> 3952.8 | G21: 其他扣繳額 | I21: =IFERROR(INDEX(員工[其他 扣繳額],Stub),"") -> 0 | K21: 稅金和扣繳總額 | M21: =IFERROR(INDEX(員工[稅金和扣繳額],Stub) + INDEX(員工[其他 扣繳額],Stub),"") -> 3952.8
C22: 一般扣繳總額
K23: 淨支付額 | M23: =IFERROR(INDEX(員工[淨支付額],Stub),"") -> 5647.2
C26: =CompanyName -> ADVENTURE WORKS
C27: 期間 | D27: =PeriodEnding -> 41372 | G27: 姓名 | H27: =IFERROR(INDEX(員工[員工名稱],Stub),"") -> Denise Smith | K27: 員工識別碼 | L27: =IFERROR(INDEX(員工[識別碼],Stub),"") -> 1003
C28: 課稅狀態 | E28: =IFERROR(INDEX(員工[課稅 狀態],Stub),"") -> 1 | G28: 聯邦預扣稅 (根據 W-4) | I28: =IFERROR(INDEX(員工[聯邦 預扣稅],Stub),"") -> 3 | K28: 工作時數 | M28: =IFERROR(INDEX(員工[一般工作時數],Stub),"") -> 35
C29: 時薪 | E29: =IFERROR(INDEX(員工[時薪],Stub),"") -> 420 | G29: 加班工資率 | I29: =IFERROR(INDEX(員工[加班工資率],Stub),"") -> 0 | K29: 病假時數 | M29: =IFERROR(INDEX(員工[病假 時數],Stub),"") -> 0
C30: 社會安全稅 | E30: =IFERROR(INDEX(員工[社會安全 稅],Stub) * INDEX(員工[總 支付額],Stub),"") -> 1005.48 | G30: 聯邦所得稅 | I30: =IFERROR(INDEX(員工[聯邦 所得稅],Stub) * INDEX(員工[總 支付額],Stub),"") -> 4468.8 | K30: 假期時數 | M30: =IFERROR(INDEX(員工[假期時數],Stub),"") -> 3
C31: 醫療保健稅 | E31: =IFERROR(INDEX(員工[醫療保健 稅],Stub) * INDEX(員工[總 支付額],Stub),"") -> 231.42 | G31: 州稅 | I31: =IFERROR(INDEX(員工[州 稅],Stub) * INDEX(員工[總 支付額],Stub),"") -> 367.08 | K31: 加班時數 | M31: =IFERROR(INDEX(員工[加班時數],Stub),"") -> 0
C32: 保險扣繳額 | E32: =IFERROR(INDEX(員工[保險扣繳額],Stub),"") -> 540 | G32: 其他一般扣繳額 | I32: =IFERROR(INDEX(員工[其他一般扣繳額],Stub),"") -> 600 | K32: 總支付額 | M32: =IFERROR(INDEX(員工[總 支付額],Stub),"") -> 15960
C33: 稅金和 | E33: =IFERROR(INDEX(員工[稅金和扣繳額],Stub),"") -> 7212.78 | G33: 其他扣繳額 | I33: =IFERROR(INDEX(員工[其他 扣繳額],Stub),"") -> 0 | K33: 稅金和扣繳總額 | M33: =IFERROR(INDEX(員工[稅金和扣繳額],Stub) + INDEX(員工[其他 扣繳額],Stub),"") -> 7212.78
C34: 一般扣繳總額
K35: 淨支付額 | M35: =IFERROR(INDEX(員工[淨支付額],Stub),"") -> 8747.22
C38: =CompanyName -> ADVENTURE WORKS
C39: 期間 | D39: =PeriodEnding -> 41372 | G39: 姓名 | H39: =IFERROR(INDEX(員工[員工名稱],Stub),"") -> Sebastien Motte | K39: 員工識別碼 | L39: =IFERROR(INDEX(員工[識別碼],Stub),"") -> 1008
C40: 課稅狀態 | E40: =IFERROR(INDEX(員工[課稅 狀態],Stub),"") -> 1 | G40: 聯邦預扣稅 (根據 W-4) | I40: =IFERROR(INDEX(員工[聯邦 預扣稅],Stub),"") -> 0 | K40: 工作時數 | M40: =IFERROR(INDEX(員工[一般工作時數],Stub),"") -> 50
C41: 時薪 | E41: =IFERROR(INDEX(員工[時薪],Stub),"") -> 600 | G41: 加班工資率 | I41: =IFERROR(INDEX(員工[加班工資率],Stub),"") -> 0 | K41: 病假時數 | M41: =IFERROR(INDEX(員工[病假 時數],Stub),"") -> 1
C42: 社會安全稅 | E42: =IFERROR(INDEX(員工[社會安全 稅],Stub) * INDEX(員工[總 支付額],Stub),"") -> 2116.8 | G42: 聯邦所得稅 | I42: =IFERROR(INDEX(員工[聯邦 所得稅],Stub) * INDEX(員工[總 支付額],Stub),"") -> 9408 | K42: 假期時數 | M42: =IFERROR(INDEX(員工[假期時數],Stub),"") -> 5
C43: 醫療保健稅 | E43: =IFERROR(INDEX(員工[醫療保健 稅],Stub) * INDEX(員工[總 支付額],Stub),"") -> 487.2 | G43: 州稅 | I43: =IFERROR(INDEX(員工[州 稅],Stub) * INDEX(員工[總 支付額],Stub),"") -> 772.8 | K43: 加班時數 | M43: =IFERROR(INDEX(員工[加班時數],Stub),"") -> 0
C44: 保險扣繳額 | E44: =IFERROR(INDEX(員工[保險扣繳額],Stub),"") -> 450 | G44: 其他一般扣繳額 | I44: =IFERROR(INDEX(員工[其他一般扣繳額],Stub),"") -> 0 | K44: 總支付額 | M44: =IFERROR(INDEX(員工[總 支付額],Stub),"") -> 33600
C45: 稅金和 | E45: =IFERROR(INDEX(員工[稅金和扣繳額],Stub),"") -> 13234.8 | G45: 其他扣繳額 | I45: =IFERROR(INDEX(員工[其他 扣繳額],Stub),"") -> 0 | K45: 稅金和扣繳總額 | M45: =IFERROR(INDEX(員工[稅金和扣繳額],Stub) + INDEX(員工[其他 扣繳額],Stub),"") -> 13234.8
C46: 一般扣繳總額
K47: 淨支付額 | M47: =IFERROR(INDEX(員工[淨支付額],Stub),"") -> 20365.2
